bitfinex/quotes_ETHUSD_20230119
["timestamp","ask_amount","ask_price","bid_price","bid_amount"]
[1674154114799,6.54915,1542.5,1542.1,6.10065964]
[1674154115079,6.54915,1542.5,1542.2,0.61006596]
[1674154115539,0.066,1542.5,1542.2,3.90181355]
[1674154115750,14.19420387,1542.6,1542.2,4.15181355]
[1674154116209,13.5176,1542.6,1542.2,4.15181355]
[1674154116429,0.066,1542.6,1542.3,0.41518135]
[1674154116595,13.64114387,1542.7,1542.3,0.41518135]
[1674154116596,13.70714387,1542.7,1542.3,0.41518135]
[1674154116935,7.22478387,1542.7,1542.3,0.41518135]
[1674154117144,7.71098387,1542.7,1542.3,3.95692894]
[1674154117547,15.21108335,1542.7,1542.3,0.25]
[1674154117873,2.17660387,1542.6,1542.3,0.25]
[1674154118184,6.48298,1542.5,1542.3,0.25]
[1674154118365,6.54898,1542.5,1542.3,0.25]
[1674154119756,1.5,1542.4,1542.3,0.25]
[1674154120160,8.04898,1542.5,1542.3,0.25]
[1674154120577,1.5,1542.4,1542.3,0.25]
[1674154121163,1.9863,1542.4,1542.3,0.25]
[1674154121370,1.5,1542.4,1542.3,0.25]
[1674154121891,0.002,1542.4,1542.3,0.25]
[1674154122073,8.72558387,1542.5,1542.3,0.25]
[1674154122533,15.20880387,1542.5,1542.3,0.25]
[1674154123070,15.69510387,1542.5,1542.3,0.25]
[1674154123242,13.5185,1542.5,1542.3,0.25]
[1674154123454,7.03528,1542.5,1542.3,0.25]
[1674154124608,0.5523,1542.5,1542.3,3.54174759]
[1674154124802,6.54848,1542.7,1542.3,3.89592235]
[1674154125441,7.03468,1542.7,1542.3,3.89592235]
[1674154125651,0.5522,1542.7,1542.4,3.68133983]
[1674154125902,0.4862,1542.7,1542.4,3.68133983]
[1674154126348,11.72855335,1542.8,1542.4,3.68133983]
[1674154126477,0.67660387,1542.7,1542.4,3.93133983]
[1674154128894,7.15876387,1542.7,1542.4,3.93133983]
[1674154129105,8.24250335,1542.7,1542.4,3.54174759]
[1674154129369,0.67660387,1542.5,1542.4,0.25]
[1674154129791,0.67660387,1542.5,1542.4,3.54174759]
[1674154129985,1.69434335,1542.6,1542.4,3.54174759]
[1674154130807,0.67660387,1542.6,1542.4,3.54174759]
[1674154131017,0.67660387,1542.6,1542.4,5.19924735]
[1674154131228,0.67660387,1542.6,1542.4,1.97349976]
[1674154131229,1.69434335,1542.6,1542.4,1.97349976]
[1674154131476,0.67660387,1542.6,1542.5,3.29174759]
[1674154131836,1.35864905,1542.6,1542.5,3.29174759]
[1674154132308,2.37696076,1542.6,1542.5,3.29174759]
[1674154132842,2.37696076,1542.6,1542.5,0.25]
[1674154132843,1.35864905,1542.6,1542.5,0.25]
[1674154133112,16.43620757,1542.6,1542.2,0.066]
[1674154133301,0.67934115,1542.3,1542.0,28.10594293]
[1674154133440,0.67934115,1542.3,1542.1,3.29174759]
[1674154133768,0.67934115,1542.3,1542.2,0.25]
[1674154135009,8.28683264,1542.4,1542.2,0.25]
[1674154135239,0.67934115,1542.3,1542.2,0.25]
[1674154135985,3.19835288,1542.3,1542.2,0.25]
[1674154136327,1.69835288,1542.3,1542.2,0.25]
[1674154137360,1.01901173,1542.3,1542.2,0.25]
[1674154137746,1.69849081,1542.3,1542.2,0.24661063]
[1674154138586,1.01901173,1542.3,1542.2,0.24661063]
[1674154138799,2.37769403,1542.3,1542.2,0.24661063]
[1674154139232,3.73546024,1542.3,1542.2,0.24661063]
[1674154139439,10.21928024,1542.3,1542.2,0.24661063]
[1674154139651,8.78528024,1542.3,1542.2,0.24661063]
[1674154139870,10.14396254,1542.3,1542.2,0.24661063]
[1674154140075,11.64396254,1542.3,1542.2,0.24661063]
[1674154140501,10.14396254,1542.3,1542.2,0.24661063]
[1674154140941,9.12495081,1542.3,1542.2,0.24661063]
[1674154141960,8.78560869,1542.3,1542.2,0.24661063]
[1674154143660,10.14429099,1542.3,1542.2,0.24661063]
[1674154144088,10.62495081,1542.3,1542.2,0.24661063]
[1674154144265,9.12495081,1542.3,1542.2,0.24661063]
[1674154144478,10.62495081,1542.3,1542.2,0.24661063]
[1674154144899,19.27133751,1542.3,1542.2,0.24661063]
[1674154145097,21.91638851,1542.3,1542.2,0.24661063]
[1674154145309,24.07834559,1542.3,1542.2,0.24661063]
[1674154145553,22.57834559,1542.3,1542.2,0.24661063]
[1674154145761,22.11567922,1542.3,1542.2,0.24661063]
[1674154145977,22.24674387,1542.3,1542.2,0.24661063]
[1674154146730,22.57834559,1542.3,1542.2,0.24661063]
[1674154146886,22.57834559,1542.3,1542.2,0.13871287]
[1674154146887,22.44728094,1542.3,1542.2,0.13871287]
[1674154147096,22.57834559,1542.3,1542.2,0.13871287]
[1674154147523,25.87009318,1542.3,1542.2,1.287e-05]
[1674154147730,26.10009318,1542.3,1542.2,1.287e-05]
[1674154148286,1.5,1542.2,1542.0,0.0249858]
[1674154148461,2.18412815,1542.1,1542.0,0.0249858]
[1674154148817,2.18412815,1542.1,1542.0,0.2749858]
[1674154150540,1.16549126,1542.1,1542.0,0.2749858]
[1674154151462,0.4864,1542.1,1542.0,0.2749858]
[1674154151885,2.66549126,1542.1,1542.0,0.2749858]
[1674154152458,16.40805127,1542.1,1542.0,0.2749858]
[1674154152603,16.47405127,1542.1,1542.0,0.2749858]
[1674154152814,17.49268816,1542.1,1542.0,0.2749858]
[1674154153492,18.82568816,1542.1,1542.0,0.2749858]
[1674154153704,19.50477942,1542.1,1542.0,0.2749858]
[1674154153917,16.67177942,1542.1,1542.0,0.2749858]
[1674154154235,14.20052047,1542.1,1542.0,0.2749858]
[1674154154598,1.23120047,1542.1,1542.0,0.2749858]
[1674154154864,1.16520047,1542.1,1542.0,0.2749858]
[1674154157075,2.18383736,1542.1,1542.0,0.2749858]
[1674154157225,15.48795689,1542.1,1542.0,0.2749858]
[1674154157437,16.91213941,1542.1,1542.0,0.2749858]
[1674154157870,15.55395689,1542.1,1542.0,0.2749858]
[1674154158288,16.91213941,1542.1,1542.0,0.2749858]
[1674154158649,16.91213941,1542.1,1541.8,0.02697293]
[1674154158650,0.2739142,1542.0,1541.8,0.02697293]
[1674154158805,22.97759847,1541.9,1541.8,0.02697293]
[1674154159209,26.72223786,1541.9,1541.8,0.02697293]
[1674154159330,25.36495908,1541.9,1541.8,0.02697293]
[1674154159679,26.04355696,1541.9,1541.8,0.02697293]
[1674154160017,25.02559788,1541.9,1541.8,0.02697293]
[1674154160185,24.70555416,1541.9,1541.8,0.02697293]
[1674154160397,23.68759508,1541.9,1541.8,0.02697293]
[1674154162587,20.009,1541.9,1541.8,0.02697293]
[1674154162796,20.68759508,1541.9,1541.8,0.02697293]
[1674154163275,20.009,1541.9,1541.8,0.02697293]
[1674154163715,20.68759508,1541.9,1541.8,0.02697293]
[1674154164509,22.01859508,1541.9,1541.8,0.02697293]
[1674154164716,22.2663356,1541.9,1541.8,0.02697293]
[1674154165140,22.79936446,1541.9,1541.8,0.02697293]
[1674154165367,22.12145908,1541.9,1541.8,0.02697293]
[1674154166760,22.79933287,1541.9,1541.8,0.02697293]
[1674154167381,22.12145908,1541.9,1541.8,0.02697293]
[1674154167913,22.12145908,1541.9,1541.8,0.02282142]
[1674154168096,20.4505024,1541.9,1541.8,0.02282142]
[1674154168291,21.46846148,1541.9,1541.8,0.02282142]
[1674154169147,20.79045908,1541.9,1541.8,0.02282142]
[1674154170795,26.49173786,1541.9,1541.8,0.02282142]
[1674154171265,26.09134343,1541.9,1541.8,0.02282142]
[1674154171589,25.96027878,1541.9,1541.8,0.02282142]
[1674154172420,26.97765506,1541.9,1541.8,0.02282142]
[1674154172632,25.08561293,1541.9,1541.8,0.02282142]
[1674154172852,23.45071645,1541.9,1541.8,0.02282142]
[1674154173210,24.46804828,1541.9,1541.8,0.02282142]
[1674154173504,13.96521645,1541.9,1541.8,0.02282142]
[1674154173689,6.8015,1541.9,1541.8,1.70782142]
[1674154175832,7.47971645,1541.9,1541.8,0.83082142]
[1674154176253,0.99421645,1541.9,1541.8,0.83082142]
[1674154176525,0.92821645,1541.9,1541.8,0.83082142]
[1674154177577,0.25,1541.9,1541.8,0.83082142]
[1674154177789,0.25,1541.9,1541.8,0.91390356]
[1674154179493,0.25,1541.9,1541.8,4.20565115]
[1674154180646,0.25,1541.9,1541.8,10.69157115]
[1674154180793,0.25,1541.9,1541.8,0.89682142]
[1674154181006,0.25,1541.9,1541.8,0.83082142]
[1674154184268,0.92821645,1541.9,1541.8,0.83082142]
[1674154184475,0.25,1541.9,1541.8,0.83082142]
[1674154184892,0.25,1541.9,1541.8,10.60848901]
[1674154185123,0.25,1541.9,1541.8,19.15425091]
[1674154185523,0.25,1541.9,1541.8,20.74825091]
[1674154186202,0.25,1541.9,1541.8,7.77641091]
[1674154186414,0.25,1541.9,1541.8,18.75440901]
[1674154187465,0.25,1541.9,1541.8,21.75440901]
[1674154188643,0.25,1541.9,1541.8,23.32840901]
[1674154190107,0.24753115,1541.9,1541.8,27.22435671]
[1674154190462,0.24753115,1541.9,1541.8,28.23439668]
[1674154190627,1.69554828,1542.5,1541.9,1.5]
[1674154190839,1.69554828,1542.5,1542.1,1.344]
[1674154191079,1.69554828,1542.5,1542.2,16.26013759]
[1674154191311,1.69554828,1542.5,1542.3,3.29174759]
[1674154191680,0.67821645,1542.5,1542.3,11.43317135]
[1674154192047,0.67821645,1542.5,1542.4,3.29174759]
[1674154192373,1.50353183,1542.6,1542.4,4.63574759]
[1674154192374,1.16441645,1542.6,1542.4,4.63574759]
[1674154192522,0.67821645,1542.6,1542.4,6.72784573]
[1674154192727,0.67821645,1542.6,1542.5,3.29174759]
[1674154192943,0.88461948,1542.7,1542.5,3.29174759]
[1674154193145,1.90195131,1542.7,1542.5,9.77463759]
[1674154193411,0.20640303,1542.7,1542.6,3.29174759]
[1674154193685,0.20640303,1542.7,1542.6,8.97974759]
[1674154193848,3.03e-06,1542.7,1542.6,9.20974759]
[1674154194018,3.03e-06,1542.7,1542.6,22.01086759]
[1674154194228,3.03e-06,1542.7,1542.6,26.26124871]
[1674154194439,11.04419101,1543.4,1542.6,25.66268871]
[1674154194695,11.04419101,1543.4,1543.1,3.29174759]
[1674154194696,1.757675,1543.4,1543.1,3.29174759]
[1674154195018,1.51272136,1543.0,1542.9,0.01]
[1674154195206,1.51272136,1543.0,1542.6,10.70294112]
[1674154195538,1.51272136,1543.0,1542.7,3.29174759]
[1674154195539,2.18954346,1543.0,1542.7,3.29174759]
[1674154195750,2.19154346,1543.0,1542.6,0.314]
[1674154195915,3.2048052,1543.0,1542.6,0.25]
[1674154196128,0.6768221,1542.9,1542.6,0.054]
[1674154196337,2.6629221,1542.9,1542.6,0.054]
[1674154196903,0.6768221,1542.8,1542.6,0.02159]
[1674154197070,1.43088221,1542.7,1542.6,0.02159]
[1674154197278,1.3632,1542.7,1542.6,0.02159]
[1674154197492,1.9862,1542.7,1542.6,0.02159]
[1674154197699,2.2428221,1542.9,1542.6,0.02159]
[1674154197700,0.4862,1542.8,1542.6,0.02159]
[1674154198795,1.9862,1542.8,1542.6,0.02159]
[1674154199213,4.05271222,1542.8,1542.6,0.02159]
[1674154199403,2.0098221,1542.7,1542.6,0.02159]
[1674154199620,2.4960221,1542.7,1542.6,0.02159]
[1674154199945,2.4960221,1542.7,1542.6,9e-05]
[1674154199946,4.33446174,1542.7,1542.6,9e-05]
[1674154200171,6.28331775,1542.7,1542.6,9e-05]
[1674154200311,5.69250536,1542.7,1542.6,9e-05]
[1674154200692,5.26631775,1542.7,1542.6,9e-05]
[1674154200855,10.27278649,1542.7,1542.6,9e-05]
[1674154201270,0.00191,1542.5,1542.0,0.248]
[1674154201440,1.8283,1542.4,1542.0,0.182]
[1674154201978,1.5,1542.3,1542.0,0.432]
[1674154203588,0.4864,1542.2,1542.0,0.432]
[1674154204246,0.7364,1542.2,1542.0,0.432]
[1674154204571,2.30304,1542.2,1542.0,0.432]
[1674154204784,1.5,1542.1,1542.0,0.432]
[1674154204950,2.36904,1542.2,1542.0,0.432]
[1674154205158,3.96004,1542.2,1542.0,0.432]
[1674154205423,1.5,1542.1,1542.0,0.432]
[1674154205955,2.764004,1542.1,1542.0,0.432]
[1674154208031,0.7364,1542.1,1542.0,0.432]
[1674154208245,0.25,1542.1,1542.0,0.432]
[1674154209000,1.75,1542.1,1542.0,0.432]
[1674154209217,8.72106,1542.1,1542.0,0.432]
[1674154209428,8.78706,1542.1,1542.0,0.432]
[1674154209733,10.73591601,1542.1,1542.0,0.432]
[1674154210102,17.22057601,1542.1,1542.0,0.432]
[1674154211150,19.22984479,1542.1,1542.0,0.432]
[1674154211360,23.24424795,1542.1,1542.0,0.25]
[1674154211570,22.22984479,1542.1,1542.0,0.25]
[1674154212033,21.55357601,1542.1,1542.0,0.25]
[1674154212237,22.22984479,1542.1,1542.0,0.25]
[1674154212449,18.72057601,1542.1,1542.0,0.25]
[1674154212667,16.77172,1542.1,1542.0,0.25]
[1674154213252,18.11472,1542.1,1542.0,0.25]
[1674154213517,22.08273637,1542.1,1542.0,0.25]
[1674154213854,30.91492499,1542.1,1541.8,0.02282142]
[1674154214049,1.35246181,1541.9,1541.8,0.00082142]
[1674154214216,24.25050201,1541.9,1541.8,0.00082142]
[1674154214426,24.25050201,1541.9,1541.8,0.25082142]
[1674154214427,28.05791457,1541.9,1541.8,0.25082142]
[1674154214773,35.50162196,1541.9,1541.8,0.16068882]
[1674154214990,35.75162196,1541.9,1541.8,0.16068882]
[1674154215358,8.377,1541.8,1541.5,0.0304551]
[1674154215733,22.29528,1541.6,1541.5,0.0304551]
[1674154216043,20.86128,1541.6,1541.5,0.0304551]
[1674154216230,24.11128,1541.6,1541.5,0.0304551]
[1674154216449,22.77628,1541.6,1541.5,0.0304551]
[1674154216635,16.28952,1541.6,1541.5,0.0304551]
[1674154217033,17.63252,1541.6,1541.5,0.0304551]
[1674154220727,20.92426759,1541.6,1541.5,0.0304551]
[1674154221082,21.41086759,1541.6,1541.5,0.0304551]
[1674154222870,28.28786759,1541.6,1541.5,0.0304551]
[1674154223040,28.51786759,1541.6,1541.5,0.0304551]
[1674154223257,31.27950582,1541.6,1541.5,0.0004551]
[1674154223815,31.27950483,1541.6,1541.3,0.02998409]
[1674154224032,28.6364,1541.4,1541.3,0.02998409]
[1674154224246,32.48074759,1541.4,1541.3,0.02998409]
[1674154224608,35.48074759,1541.4,1541.3,0.02998409]
[1674154224820,35.73074759,1541.4,1541.3,0.02998409]
[1674154226886,34.34154101,1541.2,1541.1,0.02]
[1674154227061,44.0929886,1541.2,1541.1,0.01653303]
[1674154227611,38.12292103,1541.2,1541.1,0.01653303]
[1674154227856,43.66592103,1541.2,1541.1,0.01653303]
[1674154228884,8.377,1541.1,1540.8,0.03045264]
[1674154229206,1.343,1540.9,1540.8,0.03045264]
[1674154229423,14.80922,1540.9,1540.8,0.03045264]
[1674154229732,17.87522,1540.9,1540.8,0.03045264]
[1674154229919,21.41696759,1540.9,1540.8,0.03045264]
[1674154231806,28.29396759,1540.9,1540.8,0.03045264]
[1674154232109,29.86696759,1540.9,1540.8,0.03045264]
[1674154232780,30.52390002,1540.9,1540.8,0.03045264]
[1674154233145,30.52390002,1540.9,1540.8,0.38755234]
[1674154233395,30.52390002,1540.9,1540.8,2.34e-06]
[1674154233602,14.308,1540.8,1540.7,1.42e-06]
[1674154233829,8.377,1540.7,1540.4,0.03541087]
[1674154234141,15.66278,1540.5,1540.4,0.03541087]
[1674154234356,19.02052759,1540.5,1540.4,0.03541087]
[1674154234566,22.75742759,1540.5,1540.4,0.03541087]
[1674154234716,29.63442759,1540.5,1540.4,0.03541087]
[1674154234926,31.31467933,1540.5,1540.4,0.03541087]
[1674154235138,24.10767933,1540.5,1540.4,0.03541087]
[1674154236136,28.35967933,1540.5,1540.4,0.03541087]
[1674154236876,27.34667933,1540.5,1540.4,0.03541087]
[1674154237398,35.55467933,1540.5,1540.4,0.03541087]
[1674154237719,21.03768,1540.5,1540.4,0.03541087]
[1674154238285,24.32942759,1540.5,1540.4,0.03541087]
[1674154240666,23.84252759,1540.5,1540.4,0.03541087]
[1674154240998,25.18552759,1540.5,1540.4,0.03541087]
[1674154241399,32.06252759,1540.5,1540.4,0.03541087]
[1674154241629,32.77942759,1540.5,1540.4,0.03541087]
[1674154243101,34.76936002,1540.5,1540.4,0.03541087]
[1674154244402,32.09336002,1540.5,1540.4,0.03541087]
[1674154245070,32.09336002,1540.5,1540.4,8.7e-07]
[1674154245439,8.377,1540.4,1540.3,0.05328165]
[1674154245647,29.95128759,1540.4,1540.3,0.05328165]
[1674154245871,30.60822002,1540.4,1540.3,0.05328165]
[1674154246381,22.48122002,1540.4,1540.3,0.05328165]
[1674154247059,21.82428759,1540.4,1540.3,0.05328165]
[1674154248420,13.29964,1540.4,1540.3,0.86128165]
[1674154248630,16.59138759,1540.4,1540.3,0.05328165]
[1674154248896,23.95528759,1540.4,1540.3,0.05328165]
[1674154249103,25.26915245,1540.4,1540.3,0.05328165]
[1674154249523,24.61222002,1540.4,1540.3,0.05328165]
[1674154249737,27.61222002,1540.4,1540.3,0.05328165]
[1674154250003,27.61222002,1540.4,1540.0,0.0588951]
[1674154250004,0.01908787,1540.2,1540.0,0.0588951]
[1674154250335,31.43700002,1540.1,1540.0,0.0588951]
[1674154250542,34.50300002,1540.1,1540.0,0.0588951]
[1674154256426,31.50300002,1540.1,1540.0,0.0588951]
[1674154257861,34.50300002,1540.1,1540.0,0.0588951]
[1674154258851,32.98700002,1540.1,1540.0,0.0588951]
[1674154260535,23.84524,1540.1,1540.0,0.0588951]
[1674154260998,10.85908,1540.1,1540.0,0.0588951]
[1674154261513,4.616,1540.1,1540.0,0.0588951]
[1674154261725,4.55,1540.1,1540.0,0.0588951]
[1674154261938,4.55,1540.1,1540.0,0.21478461]
[1674154262467,4.55,1540.1,1540.0,0.11478461]
[1674154262780,4.55,1540.1,1540.0,1.63078461]
[1674154263933,4.55,1540.1,1540.0,3.13078461]
[1674154264253,4.55,1540.1,1540.0,1.516]
[1674154264469,4.55,1540.1,1539.9,0.066]
[1674154264618,11.04308,1540.1,1539.8,11.5553]
[1674154264825,11.10908,1540.1,1539.8,11.5553]
[1674154265573,17.60216,1540.1,1539.8,11.5553]
[1674154270401,20.89390759,1540.1,1539.8,11.5553]
[1674154271353,17.60216,1540.1,1539.8,11.5553]
[1674154272359,20.89390759,1540.1,1539.8,11.5553]
[1674154272716,21.38090759,1540.1,1539.8,11.5553]
[1674154272970,12.98784,1539.9,1539.8,11.5553]
[1674154273193,13.05384,1539.9,1539.8,0.066]
[1674154273395,13.05384,1539.9,1539.7,0.02993267]
[1674154273605,0.066,1539.9,1539.7,0.02993267]
[1674154273778,6.80975,1540.0,1539.7,1.18975545]
[1674154273993,6.55975,1540.0,1539.7,1.18975545]
[1674154274350,6.80975,1540.0,1539.7,1.18975545]
[1674154275398,6.80975,1540.0,1539.7,0.02993267]
[1674154278075,6.80975,1540.0,1539.7,1.53493267]
[1674154280229,0.316,1540.0,1539.7,1.53493267]
[1674154280390,0.25,1540.0,1539.7,1.53493267]
[1674154280605,0.25,1540.0,1539.8,1.516]
[1674154282015,0.25,1540.0,1539.9,1.505]
[1674154285897,0.25,1540.0,1539.9,4.516]
[1674154286089,0.25,1540.0,1539.9,3.016]
[1674154286636,0.25,1540.0,1539.9,11.00992]
[1674154286785,0.25,1540.0,1539.9,11.07592]
[1674154287001,0.25,1540.0,1539.9,13.482326]
[1674154288068,0.25,1540.0,1539.9,11.982326]
[1674154289106,0.25,1540.0,1539.9,13.85858535]
[1674154289793,0.25,1540.0,1539.9,12.35858535]
[1674154289947,0.25,1540.0,1539.9,15.65033294]
[1674154290154,0.25,1540.0,1539.9,1.95325935]
[1674154290510,0.25,1540.0,1539.9,1.88725935]
[1674154292106,0.25,1540.0,1539.9,1.88517395]
[1674154292900,0.25,1540.0,1539.9,0.37625935]
[1674154292901,0.9271832,1540.0,1539.9,0.37625935]
[1674154293117,2.207412,1540.0,1539.9,0.37625935]
[1674154293746,17.0330036,1540.0,1539.9,0.37625935]
[1674154293956,18.45146541,1540.0,1539.9,0.37625935]
[1674154294196,20.43569061,1540.0,1539.9,0.37625935]
[1674154294741,19.42279061,1540.0,1539.9,0.37625935]
[1674154296263,19.09107123,1540.0,1539.9,0.37625935]
[1674154296479,20.44353304,1540.0,1539.9,0.37625935]
[1674154296708,19.42279061,1540.0,1539.9,0.37625935]
[1674154297090,20.44352016,1540.0,1539.9,0.37625935]
[1674154297299,20.44352835,1540.0,1539.9,0.37625935]
[1674154297550,19.42279061,1540.0,1539.9,0.37625935]
[1674154299575,19.09076291,1540.0,1539.9,0.37625935]
[1674154299740,19.77104608,1540.0,1539.9,0.37625935]
[1674154299950,19.09076291,1540.0,1539.9,0.37625935]
[1674154300398,18.26344592,1540.0,1539.9,0.37625935]
[1674154300997,11.76994592,1540.0,1539.9,0.37625935]
[1674154301410,12.79038003,1540.0,1539.9,0.37625935]
[1674154301992,12.11016291,1540.0,1539.9,0.37625935]
[1674154302151,13.94972472,1540.0,1539.9,0.37625935]
[1674154302629,20.44322472,1540.0,1539.9,0.37625935]
[1674154302816,19.95612472,1540.0,1539.9,0.37625935]
[1674154303199,18.93569061,1540.0,1539.9,0.37625935]
[1674154303685,19.95601007,1540.0,1539.9,0.37625935]
[1674154304296,18.93569061,1540.0,1539.9,0.37625935]
[1674154304675,19.42279061,1540.0,1539.9,0.37625935]
[1674154305362,19.77097595,1540.0,1539.9,0.33863342]
[1674154306043,23.06272354,1540.0,1539.9,0.33863342]
[1674154306394,23.1468744,1540.0,1539.9,0.33863342]
[1674154306723,21.44666242,1540.0,1539.9,0.33863342]
[1674154306984,21.44666242,1540.0,1539.9,0.21743453]
[1674154306985,23.47755485,1540.0,1539.9,0.21743453]
[1674154308075,21.44666242,1540.0,1539.9,0.21743453]
[1674154308994,22.96266242,1540.0,1539.9,0.21743453]
[1674154309440,24.99355485,1540.0,1539.9,0.21743453]
[1674154310575,22.96266242,1540.0,1539.9,0.21743453]
[1674154311229,24.99355485,1540.0,1539.9,0.21743453]
[1674154311678,2.92449331,1539.9,1539.7,0.02993267]
[1674154311887,24.8600853,1539.8,1539.7,0.02993267]
[1674154312103,25.76292378,1539.8,1539.7,0.02993267]
[1674154312417,25.84750981,1539.8,1539.7,0.02993267]
[1674154312566,26.09750981,1539.8,1539.7,0.02993267]
[1674154312768,27.37773861,1539.8,1539.7,0.02993267]
[1674154313003,28.73601013,1539.8,1539.7,0.02993267]
[1674154313370,27.03810635,1539.8,1539.7,0.02993267]
[1674154313502,30.32985394,1539.8,1539.7,0.02993267]
[1674154313715,32.02775772,1539.8,1539.7,0.02993267]
[1674154313944,30.32985394,1539.8,1539.7,0.02993267]
[1674154314561,30.32985394,1539.8,1539.6,0.04146243]
[1674154314562,1.5,1539.7,1539.6,0.04146243]
[1674154314791,22.99079854,1539.7,1539.6,0.04146243]
[1674154315134,25.89245239,1539.7,1539.6,0.04146243]
[1674154315350,23.87781099,1539.7,1539.6,0.04146243]
[1674154315567,24.12781099,1539.7,1539.6,0.04146243]
[1674154315712,25.48551996,1539.7,1539.6,0.04146243]
[1674154315924,24.4672759,1539.7,1539.6,0.04146243]
[1674154316153,26.16450751,1539.7,1539.6,0.04146243]
[1674154316357,24.4672759,1539.7,1539.6,0.04146243]
[1674154316662,25.46373097,1539.7,1539.6,0.04146243]
[1674154316912,25.46373097,1539.7,1539.6,0.02671775]
[1674154317605,25.1235959,1539.7,1539.6,0.02671775]
[1674154317943,26.14092249,1539.7,1539.6,0.02671775]
[1674154318338,24.78382595,1539.7,1539.6,0.02671775]
[1674154318864,15.49272304,1539.7,1539.6,0.02671775]
[1674154319070,13.9836437,1539.7,1539.6,0.02671775]
[1674154319866,17.27539129,1539.7,1539.6,0.02671775]
[1674154320013,17.76259129,1539.7,1539.6,0.02671775]
[1674154320227,20.76259129,1539.7,1539.6,0.02404598]
[1674154320439,21.86453607,1539.7,1539.6,0.02404598]
[1674154320865,22.36320948,1539.7,1539.6,0.02404598]
[1674154321076,23.38053607,1539.7,1539.6,0.02404598]
[1674154321705,22.70243237,1539.7,1539.6,0.02404598]
[1674154321916,24.05952891,1539.7,1539.6,0.02404598]
[1674154322391,22.70243237,1539.7,1539.6,0.02404598]
[1674154322539,23.38044996,1539.7,1539.6,0.02404598]
[1674154322750,23.38044167,1539.7,1539.6,0.02404598]
[1674154323015,22.36311508,1539.7,1539.6,0.02404598]
[1674154324390,23.38044167,1539.7,1539.6,0.02404598]
[1674154324747,18.92348478,1539.7,1539.6,5.98e-06]
[1674154325102,16.98349154,1539.7,1539.6,5.98e-06]
[1674154325908,16.30554,1539.7,1539.6,5.98e-06]
[1674154327709,16.98349154,1539.7,1539.6,5.98e-06]
[1674154328126,16.30554,1539.7,1539.6,5.98e-06]
[1674154328561,16.98349154,1539.7,1539.6,5.98e-06]
[1674154329423,18.00081813,1539.7,1539.6,5.98e-06]
[1674154329689,18.00180178,1539.7,1539.6,5.98e-06]
[1674154333110,18.00224395,1539.7,1539.6,5.98e-06]
[1674154333331,16.98491736,1539.7,1539.6,5.98e-06]
[1674154333541,17.32286659,1539.7,1539.6,5.98e-06]
[1674154335604,17.66263654,1539.7,1539.6,5.98e-06]
[1674154335820,18.14983654,1539.7,1539.6,5.98e-06]
[1674154336166,17.66040085,1539.7,1539.6,5.98e-06]
[1674154336384,17.66040085,1539.7,1539.5,0.03047782]
[1674154336385,18.00053592,1539.7,1539.5,0.03047782]
[1674154336693,5.85974833,1539.6,1539.5,0.03047782]
[1674154336903,18.91612833,1539.6,1539.5,0.03047782]
[1674154337604,20.86335994,1539.6,1539.5,0.03047782]
[1674154337819,20.94797495,1539.6,1539.5,0.03047782]
[1674154338648,20.94827005,1539.6,1539.5,0.03047782]
[1674154338858,19.50361161,1539.6,1539.5,0.03047782]
[1674154339083,19.58822662,1539.6,1539.5,0.03047782]
[1674154339294,19.50361161,1539.6,1539.5,0.03047782]
[1674154340016,19.58822662,1539.6,1539.5,0.03047782]
[1674154340226,22.7453592,1539.6,1539.5,0.03047782]
[1674154340439,24.34597421,1539.6,1539.5,0.03047782]
[1674154340701,22.6487426,1539.6,1539.5,0.03047782]
[1674154340853,23.1359426,1539.6,1539.5,0.03047782]
[1674154341648,25.16683503,1539.6,1539.5,0.03047782]
[1674154342011,23.1359426,1539.6,1539.5,0.03047782]
[1674154342227,21.6359426,1539.6,1539.5,0.03047782]
[1674154343272,23.33674029,1539.6,1539.5,0.03047782]
[1674154343487,21.6359426,1539.6,1539.5,0.03047782]
[1674154345756,20.1199426,1539.6,1539.5,0.03047782]
[1674154346221,16.34099501,1539.6,1539.5,0.03047782]
[1674154346424,16.25638,1539.6,1539.5,0.03047782]
[1674154346634,16.25638,1539.6,1539.5,0.83847782]
[1674154346889,19.80597558,1539.6,1539.5,0.83847782]
[1674154347050,14.81350241,1539.6,1539.5,0.83847782]
[1674154347260,8.99906086,1539.6,1539.5,0.83847782]
[1674154347474,7.97793845,1539.6,1539.5,0.83847782]
[1674154348158,1.48274845,1539.6,1539.5,2.34947782]
[1674154348480,0.736,1539.6,1539.5,2.34947782]
[1674154348797,0.736,1539.6,1539.5,2.7410256]
[1674154348944,1.41674845,1539.6,1539.5,2.7410256]
[1674154349155,0.736,1539.6,1539.5,2.7410256]
[1674154349421,0.736,1539.6,1539.5,7.54877319]
[1674154349595,0.736,1539.6,1539.5,7.84477319]
[1674154349811,0.736,1539.6,1539.5,6.33377319]
[1674154350034,0.736,1539.6,1539.5,12.82938319]
[1674154351304,0.736,1539.6,1539.5,14.34538319]
[1674154352786,0.74674845,1539.9,1539.5,20.84099319]
[1674154352957,8.26138086,1540.0,1539.8,1.516]
[1674154353150,0.066,1540.0,1539.9,3.016]
[1674154353358,7.24018845,1540.1,1539.9,1.8176]
[1674154353716,7.24018845,1540.1,1540.0,1.511]
[1674154354418,0.99674845,1540.1,1540.0,1.511]
[1674154354618,0.93074845,1540.1,1540.0,1.69226]
[1674154358766,0.25,1540.1,1540.0,1.69226]
[1674154359983,0.93074845,1540.1,1540.0,0.18126]
[1674154360829,0.25,1540.1,1540.0,0.18126]
[1674154363294,13.91690845,1540.1,1539.8,1.516]
[1674154363512,13.98290845,1540.1,1539.7,12.795]
[1674154363750,13.98290845,1540.1,1539.7,16.08674759]
[1674154364036,13.98290845,1540.1,1539.7,19.07736228]
[1674154365721,15.00403086,1540.1,1539.7,19.07736228]
[1674154366042,13.98290845,1540.1,1539.7,19.07736228]
[1674154367980,13.98290845,1540.1,1539.8,1.505]
[1674154368231,13.98290845,1540.1,1539.7,19.06336228]
[1674154368392,13.98290845,1540.1,1539.8,3.40633623]
[1674154368838,0.316,1540.1,1539.9,3.29174759]
[1674154369087,0.25,1540.1,1539.9,3.29174759]
[1674154369906,0.68074845,1540.0,1539.8,0.066]
[1674154370122,12.98784,1539.9,1539.7,11.279]
[1674154370432,13.05384,1539.9,1539.7,11.279]
[1674154370774,14.294064,1539.8,1539.7,11.279]
[1674154370921,13.05468,1539.8,1539.7,11.279]